bitfinex/quotes_BTCUSD_20220103
["timestamp","ask_amount","ask_price","bid_price","bid_amount"]
[1641233286790,0.00015007,46611.0,46610.0,0.70784781]
[1641233287195,2.25351513,46611.0,46610.0,0.70784781]
[1641233287391,2.60341313,46611.0,46610.0,0.70784781]
[1641233287591,2.60341313,46611.0,46610.0,0.44383448]
[1641233289439,2.60341313,46611.0,46610.0,0.70799885]
[1641233289440,2.25351513,46611.0,46610.0,0.70799885]
[1641233289642,0.00015007,46611.0,46610.0,0.70799885]
[1641233289842,0.00015007,46611.0,46610.0,1.84394537]
[1641233290437,0.00015007,46611.0,46610.0,1.06394537]
[1641233290645,0.00015007,46611.0,46610.0,1.11153185]
[1641233291037,0.00015007,46611.0,46610.0,0.68476537]
[1641233291238,0.00015007,46611.0,46610.0,0.63113037]
[1641233291639,0.00015007,46611.0,46610.0,0.017068]
[1641233293894,0.00015007,46611.0,46610.0,0.01814071]
[1641233301896,0.39804807,46611.0,46610.0,0.01814071]
[1641233302694,0.39804807,46611.0,46610.0,0.01314071]
[1641233303597,0.4,46610.0,46607.0,0.00022]
[1641233303854,1.2053819,46608.0,46606.0,0.00033]
[1641233304048,1.104853,46607.0,46606.0,0.00033]
[1641233304447,1.204853,46607.0,46606.0,0.00033]
[1641233304648,1.20508732,46607.0,46606.0,0.00033]
[1641233304848,1.35508732,46607.0,46606.0,0.00033]
[1641233305048,1.62838389,46607.0,46606.0,0.017397]
[1641233306248,1.62838389,46607.0,46606.0,0.01559908]
[1641233306548,1.72807787,46607.0,46606.0,0.01422566]
[1641233306749,1.67838389,46607.0,46606.0,0.01422566]
[1641233306950,1.72807787,46607.0,46606.0,0.01422566]
[1641233310196,0.456253,46605.0,46601.0,0.002]
[1641233310397,1.13870738,46606.0,46597.0,0.00033]
[1641233310398,1.476253,46601.0,46597.0,0.00033]
[1641233310595,2.33185886,46601.0,46597.0,0.00033]
[1641233310792,1.97185886,46601.0,46597.0,0.00033]
[1641233310991,1.97185886,46601.0,46599.0,0.008864]
[1641233311437,1.35,46600.0,46599.0,0.008864]
[1641233311636,1.138,46600.0,46599.0,0.008864]
[1641233311934,1.288,46600.0,46599.0,0.008864]
[1641233312335,1.28777,46600.0,46599.0,0.008864]
[1641233312632,1.75746398,46600.0,46599.0,0.008864]
[1641233312837,1.33746398,46600.0,46599.0,0.008864]
[1641233314234,0.54769398,46600.0,46599.0,0.008864]
[1641233314434,0.95769398,46600.0,46599.0,0.008864]
[1641233314989,0.95769398,46600.0,46599.0,0.017397]
[1641233315592,0.95792244,46600.0,46599.0,0.017397]
[1641233316391,1.42792244,46600.0,46599.0,0.017397]
[1641233317192,1.427357,46600.0,46599.0,0.017397]
[1641233317601,0.887357,46600.0,46599.0,0.01084688]
[1641233317794,0.937357,46600.0,46599.0,0.01084688]
[1641233318194,1.23072179,46600.0,46599.0,0.01084688]
[1641233320350,0.937357,46600.0,46599.0,0.01084688]
[1641233320649,1.23147014,46600.0,46599.0,0.01084688]
[1641233322791,0.937357,46600.0,46599.0,0.01084688]
[1641233326746,1.04188824,46600.0,46599.0,0.01084688]
[1641233327145,1.33616363,46600.0,46599.0,0.01084688]
[1641233327348,1.53569208,46600.0,46599.0,0.01084688]
[1641233327746,1.21,46597.0,46592.0,0.00033]
[1641233327946,1.49,46593.0,46591.0,0.00222]
[1641233328149,0.7,46591.0,46590.0,0.00044]
[1641233328347,0.84803456,46591.0,46590.0,0.00022]
[1641233328650,1.28063782,46590.0,46589.0,0.00033]
[1641233328845,0.89923782,46590.0,46588.0,0.00011]
[1641233329043,1.44774506,46589.0,46587.0,0.00033]
[1641233329250,1.44774506,46589.0,46583.0,0.000294]
[1641233329251,0.84803456,46588.0,46583.0,0.000294]
[1641233329444,0.19943456,46584.0,46582.0,0.00033]
[1641233329644,0.24743456,46583.0,46582.0,0.00033]
[1641233329843,0.24743456,46583.0,46581.0,0.00211]
[1641233330092,0.24743456,46583.0,46580.0,0.00011]
[1641233330093,0.24556154,46582.0,46580.0,0.00011]
[1641233330291,0.30112756,46581.0,46579.0,0.00011]
[1641233330690,0.19943456,46580.0,46578.0,0.42011]
[1641233330892,0.24743456,46579.0,46578.0,0.41334581]
[1641233331694,0.39743456,46579.0,46578.0,0.41334581]
[1641233332092,0.49743456,46579.0,46578.0,0.41334581]
[1641233332492,0.49743456,46579.0,46578.0,0.42187981]
[1641233333294,0.49870487,46579.0,46578.0,0.42187981]
[1641233334934,0.54839885,46579.0,46578.0,0.42187981]
[1641233335136,0.49870487,46579.0,46578.0,0.42187981]
[1641233335334,0.54870487,46579.0,46578.0,0.42187981]
[1641233335535,0.298,46579.0,46578.0,0.42187981]
[1641233335934,0.198,46579.0,46578.0,0.42187981]
[1641233336834,0.048,46579.0,46578.0,0.42187981]
[1641233337482,0.04821087,46579.0,46578.0,0.42187981]
[1641233337682,0.24821087,46579.0,46578.0,0.42187981]
[1641233337882,0.39821087,46579.0,46578.0,0.42187981]
[1641233338085,0.49821087,46579.0,46578.0,0.42187981]
[1641233338284,0.29821087,46579.0,46578.0,0.42187981]
[1641233338683,0.49821087,46579.0,46578.0,0.42187981]
[1641233339386,0.29821087,46579.0,46578.0,0.42187981]
[1641233339584,0.19821087,46579.0,46578.0,0.42187981]
[1641233340587,0.39821087,46579.0,46578.0,0.42187981]
[1641233341238,0.49821087,46579.0,46578.0,0.42187981]
[1641233341935,0.29821087,46579.0,46578.0,0.42187981]
[1641233342133,0.39821087,46579.0,46578.0,0.42187981]
[1641233342333,0.49821087,46579.0,46578.0,0.42187981]
[1641233343434,0.29821087,46579.0,46578.0,0.42187981]
[1641233343635,0.39821087,46579.0,46578.0,0.42187981]
[1641233344036,0.49821087,46579.0,46578.0,0.42187981]
[1641233345090,0.29821087,46579.0,46578.0,0.42187981]
[1641233345290,0.19821087,46579.0,46578.0,0.42187981]
[1641233345691,0.39821087,46579.0,46578.0,0.42187981]
[1641233346092,0.29821087,46579.0,46578.0,0.42187981]
[1641233346593,0.19821087,46579.0,46578.0,0.42187981]
[1641233347192,0.19562682,46579.0,46578.0,0.42187981]
[1641233349641,0.24562682,46579.0,46578.0,0.42187981]
[1641233353893,0.19562682,46579.0,46578.0,0.42187981]
[1641233354493,0.24562682,46579.0,46578.0,0.42187981]
[1641233354697,0.24562682,46579.0,46578.0,0.64083543]
[1641233354894,0.09562682,46579.0,46578.0,0.64083543]
[1641233355096,0.00021087,46579.0,46578.0,0.9073685]
[1641233355295,0.00021087,46579.0,46578.0,1.2576845]
[1641233357153,8.7e-07,46579.0,46578.0,1.3056845]
[1641233357358,8.7e-07,46579.0,46578.0,1.16921971]
[1641233357555,8.7e-07,46579.0,46578.0,1.26921971]
[1641233357952,0.601,46599.0,46594.0,0.07189997]
[1641233358152,0.601,46599.0,46596.0,0.15365448]
[1641233358454,1.43501931,46599.0,46596.0,0.05365449]
[1641233358653,0.50297614,46598.0,46578.0,0.46987981]
[1641233358853,0.00120331,46594.0,46578.0,0.46987981]
[1641233359054,0.00120331,46594.0,46591.0,0.72664047]
[1641233359451,0.2,46593.0,46591.0,0.72664047]
[1641233359654,0.2492185,46592.0,46591.0,0.63664047]
[1641233360006,0.2492185,46592.0,46585.0,0.63664047]
[1641233360007,0.00124269,46586.0,46585.0,0.63664047]
[1641233360203,0.04924269,46586.0,46585.0,0.63664047]
[1641233360402,0.04924269,46586.0,46579.0,1.02548266]
[1641233360601,0.04924269,46586.0,46581.0,0.27630246]
[1641233361409,0.053682,46584.0,46581.0,0.27630246]
[1641233361606,0.048,46583.0,46581.0,0.27630246]
[1641233362107,0.048,46588.0,46581.0,0.27630246]
[1641233362307,0.053678,46587.0,46581.0,0.26846268]
[1641233363512,0.05,46586.0,46583.0,0.05367752]
[1641233363762,1.86340973,46585.0,46583.0,0.05367752]
[1641233370601,0.00017714,46584.0,46583.0,0.05367752]
[1641233372746,0.00017714,46584.0,46583.0,0.9410721]
[1641233372948,0.00017714,46584.0,46583.0,0.6813881]
[1641233373545,0.00017714,46584.0,46583.0,0.6797102]
[1641233373744,0.00017714,46584.0,46583.0,2.03846297]
[1641233374144,0.00017714,46584.0,46583.0,2.13876899]
[1641233374749,0.00017714,46584.0,46583.0,2.18876899]
[1641233375046,0.00017714,46584.0,46583.0,2.49975739]
[1641233375247,0.00017714,46584.0,46583.0,3.64098529]
[1641233375447,0.00017714,46584.0,46583.0,3.68898529]
[1641233375648,0.83287474,46597.0,46584.0,1.58]
[1641233375844,0.601,46599.0,46598.0,0.56633729]
[1641233375845,1.43387474,46599.0,46598.0,0.56633729]
[1641233376243,0.601,46599.0,46598.0,0.56633729]
[1641233377543,0.601,46599.0,46598.0,0.698417]
[1641233377744,0.601,46599.0,46596.0,0.05365281]
[1641233378748,0.601,46599.0,46598.0,0.23898298]
[1641233379343,0.601,46599.0,46596.0,0.05365281]
[1641233381344,0.60115604,46599.0,46596.0,0.05365281]
[1641233382346,0.60115604,46599.0,46596.0,0.05197491]
[1641233382797,0.60115604,46599.0,46596.0,0.04861911]
[1641233383197,0.60115604,46599.0,46596.0,0.04694121]
[1641233383596,0.60115604,46599.0,46596.0,0.04526331]
[1641233383796,0.60115604,46599.0,46596.0,0.04358541]
[1641233384296,0.60115604,46599.0,46596.0,0.04022961]
[1641233384696,0.60115604,46599.0,46596.0,0.03855171]
[1641233387652,0.2,46597.0,46594.0,0.72662451]
[1641233387853,0.34560687,46598.0,46594.0,0.72662451]
[1641233387854,0.248,46596.0,46594.0,0.72662451]
[1641233388051,0.34140399,46595.0,46590.0,0.72662451]
[1641233388253,0.39140399,46595.0,46590.0,0.72662451]
[1641233388458,0.49140399,46595.0,46590.0,0.72662451]
[1641233388653,0.34140399,46595.0,46585.0,0.72662451]
[1641233388955,0.053675,46591.0,46585.0,0.72445672]
[1641233389157,0.101675,46591.0,46585.0,0.72445672]
[1641233389352,0.101675,46591.0,46585.0,0.72412114]
[1641233389554,0.101675,46591.0,46583.0,0.08167009]
[1641233389753,0.101675,46591.0,46583.0,0.08133451]
[1641233389998,0.101675,46591.0,46581.0,0.30999919]
[1641233390200,0.101675,46591.0,46581.0,0.30202711]
[1641233390601,0.101675,46591.0,46584.0,0.10734094]
[1641233391803,0.048,46591.0,46587.0,0.05367118]
[1641233392007,0.00014725,46590.0,46587.0,0.05367118]
[1641233392807,0.00014725,46590.0,46588.0,0.45764985]
[1641233393005,0.00014725,46590.0,46589.0,0.05]
[1641233393609,0.00014725,46590.0,46589.0,0.77167313]
[1641233393844,0.00014725,46590.0,46589.0,1.12198913]
[1641233394241,0.00014725,46590.0,46589.0,1.11698913]
[1641233395042,0.00014725,46590.0,46589.0,0.63698913]
[1641233395743,0.60223415,46599.0,46597.0,0.09067937]
[1641233395942,0.601,46599.0,46597.0,0.09067937]
[1641233396941,0.601,46599.0,46596.0,0.16096731]
[1641233398602,0.59129896,46599.0,46596.0,0.16096731]
[1641233398805,0.59129896,46599.0,46597.0,0.18204048]
[1641233402555,0.59129896,46599.0,46596.0,0.16096731]
[1641233406906,0.59129896,46599.0,46596.0,0.21096731]
[1641233408306,0.59129896,46599.0,46596.0,0.16096731]
[1641233408510,0.048,46598.0,46596.0,0.16096731]
[1641233408756,0.048,46598.0,46586.0,0.300857]
[1641233408950,0.048,46598.0,46589.0,0.10733616]
[1641233409448,0.00129912,46594.0,46584.0,0.08936195]
[1641233409647,0.053672,46590.0,46584.0,0.08936195]
[1641233409847,0.101672,46590.0,46585.0,0.10734327]
[1641233411150,0.29054306,46589.0,46586.0,0.05366935]
[1641233411351,0.048,46588.0,46586.0,0.05366935]
[1641233411754,0.15,46587.0,46586.0,0.05366935]
[1641233411950,0.198,46587.0,46586.0,0.05366935]
[1641233412798,0.053677,46585.0,46582.0,0.10735109]
[1641233412999,0.101677,46585.0,46582.0,0.10735109]
[1641233413398,0.155359,46585.0,46582.0,0.10735109]
[1641233413802,0.053686,46581.0,46578.0,0.008534]
[1641233414000,0.048,46580.0,46578.0,0.008534]
[1641233414405,0.248,46580.0,46578.0,0.008534]
[1641233414602,0.00125427,46579.0,46578.0,0.008534]
[1641233414800,0.94925427,46579.0,46578.0,0.008534]
[1641233415102,0.29925427,46579.0,46578.0,0.008534]
[1641233415500,0.59981263,46579.0,46578.0,0.008534]
[1641233415900,0.74981263,46579.0,46578.0,0.008534]
[1641233416346,0.24925427,46579.0,46578.0,0.008534]
[1641233417545,0.248,46579.0,46578.0,0.008534]
[1641233418449,0.248,46579.0,46578.0,0.00818409]
[1641233419047,0.44926417,46579.0,46578.0,0.00818409]
[1641233419450,0.24926417,46579.0,46578.0,0.00818409]
[1641233419992,0.44926417,46579.0,46578.0,0.00818409]
[1641233421699,0.248,46579.0,46578.0,0.00818409]
[1641233424149,0.198,46579.0,46578.0,0.00818409]
[1641233424352,0.15,46579.0,46578.0,0.00818409]
[1641233424552,0.15,46579.0,46578.0,0.2721247]
[1641233424754,0.3426,46587.0,46578.0,0.2721247]
[1641233424952,0.048,46587.0,46582.0,0.05367633]
[1641233425151,0.048,46587.0,46581.0,0.10735266]
[1641233425752,0.15,46585.0,46581.0,0.10735266]
[1641233426352,0.15,46585.0,46584.0,0.09133671]
[1641233427153,0.15,46585.0,46584.0,0.29767944]
[1641233427801,0.203677,46587.0,46584.0,0.09133671]
[1641233428502,0.15,46587.0,46584.0,0.19868236]
[1641233429201,0.15,46587.0,46584.0,0.10734565]
[1641233430006,0.15,46587.0,46585.0,0.05367196]
[1641233431749,0.15,46586.0,46585.0,0.05367196]
[1641233432346,0.15013261,46586.0,46585.0,0.05323471]
[1641233432745,0.15013261,46586.0,46585.0,0.05430799]
[1641233433748,0.15013261,46586.0,46585.0,0.00107328]
[1641233436030,0.11540761,46586.0,46585.0,0.00107328]
[1641233437730,0.15013261,46586.0,46585.0,0.00107328]
[1641233441951,0.15013261,46586.0,46584.0,0.09541131]
[1641233443814,0.00022934,46586.0,46584.0,0.09541131]
[1641233444714,0.15022934,46586.0,46584.0,0.09541131]
[1641233445519,0.15022934,46586.0,46584.0,0.14541131]
[1641233445717,0.00022934,46586.0,46584.0,0.14541131]
[1641233447755,0.00022934,46586.0,46584.0,0.40703463]
[1641233448552,0.00022934,46586.0,46584.0,0.09541131]
[1641233448754,0.15,46585.0,46584.0,0.09541131]
[1641233453598,0.15,46585.0,46584.0,0.08641131]
[1641233454049,0.15022893,46585.0,46584.0,0.08641131]
[1641233456955,0.15022893,46585.0,46583.0,0.05367294]
[1641233457361,0.15022893,46585.0,46582.0,0.05368053]
[1641233457615,0.15022893,46585.0,46580.0,0.72626497]
[1641233457815,0.15022893,46585.0,46578.0,0.00818409]
[1641233457816,0.053689,46581.0,46578.0,0.73444906]
[1641233458014,0.00128547,46579.0,46578.0,0.73444906]
[1641233458814,0.05497447,46579.0,46578.0,0.73444906]
[1641233459013,0.053689,46579.0,46578.0,0.00818409]
[1641233459612,0.101689,46579.0,46578.0,0.00818409]
[1641233462267,0.053691,46580.0,46578.0,0.00818409]
[1641233462467,0.15,46581.0,46578.0,0.00818409]
[1641233462967,0.203677,46584.0,46578.0,0.00818409]
[1641233463169,0.203677,46584.0,46583.0,0.07981485]
[1641233463571,0.15,46584.0,46583.0,0.07981485]
[1641233463766,0.15022893,46585.0,46583.0,0.07981485]
[1641233464767,0.20390393,46585.0,46583.0,0.07981485]
[1641233465204,0.15022893,46585.0,46583.0,0.07981485]
[1641233466207,0.20390493,46585.0,46583.0,0.07981485]
[1641233466704,0.15,46584.0,46583.0,0.07981485]
[1641233469055,0.15,46584.0,46582.0,0.05367749]
[1641233469254,0.203678,46584.0,46582.0,0.05367749]
[1641233469754,0.15,46583.0,46582.0,0.05367749]
[1641233470155,0.15,46583.0,46582.0,0.13869855]
[1641233475619,0.15022725,46583.0,46582.0,0.13869855]
[1641233478652,0.15022725,46583.0,46582.0,0.18869855]
[1641233479352,0.15022725,46583.0,46582.0,0.13869855]
[1641233480100,0.15022725,46583.0,46582.0,0.18869855]
[1641233482001,0.15022725,46583.0,46582.0,0.13869855]
[1641233485165,0.15022725,46583.0,46582.0,0.39925546]
[1641233485967,0.15022725,46583.0,46582.0,0.13869855]
[1641233486866,0.00022725,46583.0,46582.0,0.13869855]
[1641233487714,0.15022725,46583.0,46582.0,0.13869855]
[1641233488117,0.15022725,46583.0,46582.0,0.05367749]
[1641233488520,0.24822725,46583.0,46582.0,0.05367749]
[1641233489318,0.053686,46581.0,46579.0,0.05368528]
[1641233489521,0.048,46580.0,46579.0,0.05368528]
[1641233489722,0.048,46580.0,46578.0,0.00818409]
[1641233490519,0.101688,46580.0,46578.0,0.00818409]
[1641233490719,0.15,46579.0,46578.0,0.00818409]
[1641233490918,0.251688,46579.0,46578.0,0.00818409]
[1641233491858,0.301688,46579.0,46578.0,0.00818409]
[1641233495199,0.248,46579.0,46578.0,0.00818409]
[1641233495702,2.93259322,46579.0,46578.0,0.00818409]
[1641233496299,0.248,46579.0,46578.0,0.00818409]
[1641233496500,0.2,46579.0,46578.0,0.00818409]
[1641233496901,0.00022725,46583.0,46578.0,0.00818409]
[1641233496902,0.15,46580.0,46578.0,0.00818409]
[1641233497101,0.2,46580.0,46578.0,0.11553439]
[1641233497405,0.0002239,46579.0,46578.0,0.11553439]
[1641233497800,0.0002239,46579.0,46578.0,0.46585039]
[1641233498300,0.0002239,46579.0,46578.0,0.35850009]
[1641233499754,0.0002239,46579.0,46578.0,0.00818409]
[1641233500957,0.0002239,46579.0,46578.0,0.35850009]
[1641233501358,0.0002239,46579.0,46578.0,0.40850009]
[1641233502256,0.0002239,46579.0,46578.0,0.05818409]
[1641233502519,0.0002239,46579.0,46578.0,0.00818409]
[1641233502921,0.1502239,46579.0,46578.0,0.00818409]
[1641233503112,0.2002239,46579.0,46578.0,0.00818409]
[1641233503715,0.1502239,46579.0,46578.0,0.00818409]
[1641233503915,0.1502239,46579.0,46578.0,0.65931145]
[1641233504315,0.1502239,46579.0,46578.0,1.05931145]
[1641233504514,0.1502239,46579.0,46578.0,0.70931145]
[1641233504713,0.0002239,46579.0,46578.0,0.40850009]
[1641233505914,0.0002239,46579.0,46578.0,0.51583709]
[1641233506119,0.0002239,46579.0,46578.0,0.11552109]
[1641233506398,0.0482239,46579.0,46578.0,0.00818409]
[1641233506796,0.1982239,46579.0,46578.0,0.00818409]
[1641233508095,0.1502239,46579.0,46578.0,0.00818409]
[1641233508895,0.0002239,46579.0,46578.0,0.00818409]
[1641233527421,0.05146724,46581.0,46578.0,0.00818409]
[1641233527819,0.05146724,46581.0,46578.0,0.06186311]
[1641233529060,0.05146724,46581.0,46578.0,0.11186311]
[1641233530162,0.00020438,46580.0,46578.0,0.11186311]
[1641233530364,0.00020438,46580.0,46579.0,0.23189459]
[1641233530563,0.00020438,46580.0,46578.0,0.11186311]
[1641233533811,0.00020438,46580.0,46578.0,0.06186311]
[1641233538373,0.00020438,46580.0,46578.0,0.11186311]
[1641233538574,0.00020438,46580.0,46579.0,1.32007069]
[1641233538777,0.00020438,46580.0,46579.0,1.43984487]
[1641233538980,0.00020438,46580.0,46579.0,1.53984487]
[1641233539178,0.00020438,46580.0,46579.0,1.68984486]
[1641233539377,0.8399321,46588.0,46587.0,0.00125179]
[1641233539573,0.8399321,46588.0,46587.0,2.27557538]
[1641233539574,0.00780253,46588.0,46587.0,2.27557538]
[1641233540003,0.0001,46590.0,46587.0,1.53557538]
[1641233540206,0.0001,46590.0,46587.0,1.48191638]
[1641233540504,0.0001,46590.0,46589.0,0.00129598]
[1641233540704,0.0001,46590.0,46589.0,0.35161198]
[1641233541006,1.42342853,46599.0,46598.0,0.09792855]
[1641233541203,1.42342853,46599.0,46589.0,0.05129598]
[1641233541404,1.42342853,46599.0,46590.0,0.350316]
[1641233541606,0.00782114,46595.0,46590.0,0.400316]
[1641233542008,0.00282114,46595.0,46592.0,0.10731098]
[1641233542206,0.59129896,46599.0,46593.0,0.42837484]
[1641233542808,0.59129896,46599.0,46593.0,0.48203084]
[1641233543609,0.59129896,46599.0,46595.0,0.05365573]
[1641233543862,0.59129896,46599.0,46595.0,0.053653]
[1641233544063,0.59129896,46599.0,46594.0,0.15731146]
[1641233545665,0.59129896,46599.0,46594.0,0.41790261]
[1641233547507,0.59129896,46599.0,46595.0,0.053653]
[1641233548111,0.59129896,46599.0,46598.0,0.00125311]
[1641233548310,0.59129896,46599.0,46598.0,1.62925311]
[1641233548509,0.59129896,46599.0,46598.0,2.03321311]
[1641233548709,0.59129896,46599.0,46598.0,2.13967342]
[1641233549013,0.59129896,46599.0,46598.0,3.37351913]
[1641233549609,0.01249896,46599.0,46598.0,3.37351913]
[1641233549811,0.83222957,46610.0,46599.0,1.490316]
[1641233550113,0.83222957,46610.0,46609.0,0.01430442]
[1641233550313,0.0001,46620.0,46609.0,0.01430442]
[1641233550314,0.83212957,46613.0,46612.0,0.00129538]
[1641233550515,0.83212957,46613.0,46612.0,1.30961138]
[1641233550715,0.83212957,46613.0,46612.0,1.61065772]
[1641233550911,0.0001,46620.0,46613.0,1.58]
[1641233550912,0.84465571,46619.0,46613.0,1.58]
[1641233551111,0.84465571,46619.0,46618.0,2.72]
[1641233551361,0.09041845,46623.0,46618.0,2.72]
[1641233551362,1.08767869,46633.0,46622.0,0.350316]
[1641233551565,1.08767869,46633.0,46628.0,1.44618243]
[1641233551762,1.08767869,46633.0,46628.0,4.50534098]
[1641233551963,1.08767869,46633.0,46629.0,0.22969776]
[1641233552159,1.08767869,46633.0,46629.0,0.62801376]
[1641233552361,1.08777869,46640.0,46629.0,0.62801376]
[1641233552760,1.08777869,46640.0,46629.0,0.95801376]
[1641233553060,0.0001,46640.0,46629.0,1.2638033]
[1641233553260,0.01826164,46651.0,46629.0,0.9338033]
[1641233553462,0.23211015,46651.0,46639.0,0.2822727]
[1641233553660,0.23211015,46651.0,46638.0,0.00128239]
[1641233553860,0.15,46650.0,46638.0,0.00128239]
[1641233554472,0.053607,46649.0,46638.0,0.00128239]
[1641233554661,2.1548262,46647.0,46636.0,0.10720703]
[1641233554862,2.3528262,46647.0,46631.0,0.00128754]
[1641233555107,2.4028262,46647.0,46631.0,0.00128754]
[1641233555504,2.4028262,46647.0,46638.0,0.07609604]
[1641233556204,2.4028262,46647.0,46633.0,0.10721605]
[1641233556404,2.4028262,46647.0,46633.0,0.15721605]
[1641233556405,0.053613,46646.0,46633.0,0.15721605]
[1641233556604,0.053614,46643.0,46633.0,0.15721605]
[1641233557605,0.05,46645.0,46635.0,0.05361072]
[1641233557804,0.05,46645.0,46636.0,0.11365895]
[1641233558004,0.248,46647.0,46636.0,0.11365895]
[1641233558206,0.15,46647.0,46644.0,0.08658715]
[1641233558414,0.15,46647.0,46644.0,0.13658715]
[1641233558605,0.15,46647.0,46644.0,0.36014288]
[1641233558872,1.08888316,46655.0,46644.0,0.13658715]
[1641233559372,0.00120447,46655.0,46645.0,0.31426529]
[1641233559772,0.00120447,46655.0,46645.0,0.54158075]
[1641233560573,0.00120447,46655.0,46648.0,0.05359394]
[1641233561375,0.002,46659.0,46648.0,0.05359394]
[1641233561775,0.053597,46658.0,46645.0,0.81549379]
[1641233561972,0.053597,46658.0,46647.0,0.05359788]
[1641233562371,0.00020174,46657.0,46647.0,0.05359788]
[1641233562622,1.49644978,46650.0,46647.0,0.05359788]
[1641233563423,1.49644978,46650.0,46644.0,0.10360043]
[1641233563923,0.048,46649.0,46638.0,0.10720491]
[1641233564125,0.048,46649.0,46636.0,0.00126619]
[1641233564126,0.45371428,46649.0,46636.0,0.00126619]
[1641233564323,0.45371428,46649.0,46632.0,0.19675091]
[1641233565121,0.45371428,46649.0,46632.0,0.24675091]
[1641233565523,0.053613,46645.0,46632.0,0.24675091]
[1641233565823,0.048,46644.0,46635.0,0.10721195]
[1641233566022,0.048,46644.0,46635.0,0.15721195]
[1641233568373,0.048,46644.0,46637.0,0.05360842]
[1641233570306,0.048,46644.0,46637.0,0.06214142]
[1641233570511,0.048,46644.0,46637.0,0.008533]
[1641233570709,0.248,46644.0,46637.0,0.008533]
[1641233570908,0.11414954,46643.0,46637.0,0.008533]
[1641233571108,0.048,46642.0,46637.0,0.008533]
[1641233571608,0.41469398,46638.0,46637.0,0.008533]
[1641233571811,0.10269398,46638.0,46637.0,0.008533]
[1641233572208,0.27269398,46638.0,46637.0,0.008533]
[1641233572407,0.15269398,46638.0,46637.0,0.008533]
[1641233573009,0.15288321,46638.0,46637.0,0.008533]
[1641233573611,0.46787002,46638.0,46637.0,0.008533]
[1641233574469,0.88787002,46638.0,46637.0,0.008533]
[1641233574670,2.02663547,46638.0,46637.0,3e-06]
[1641233574870,1.98710209,46638.0,46636.0,6e-06]
[1641233575174,1.22188586,46637.0,46636.0,6e-06]
[1641233575374,1.26988586,46637.0,46636.0,6e-06]
[1641233575570,1.36988586,46637.0,46636.0,6e-06]
[1641233575770,1.51988586,46637.0,46636.0,6e-06]
[1641233576370,1.51988586,46637.0,46636.0,0.008534]
[1641233576573,0.00126176,46633.0,46632.0,0.00782566]
[1641233576770,0.2,46631.0,46612.0,0.10726252]
[1641233576973,0.60180736,46626.0,46612.0,0.10726252]
[1641233577173,0.6006,46620.0,46610.0,0.0012688]
[1641233577372,0.40640996,46619.0,46617.0,0.008534]
[1641233577628,0.45419324,46618.0,46617.0,0.008534]
[1641233577828,0.50219324,46618.0,46617.0,0.008534]
[1641233581666,0.50319324,46618.0,46617.0,0.008534]
[1641233582269,0.65788722,46618.0,46617.0,0.008534]
[1641233582870,0.80788722,46618.0,46617.0,0.008534]
[1641233583569,0.70788722,46618.0,46617.0,0.008534]
[1641233583769,0.70788722,46618.0,46617.0,0.029984]
[1641233583969,0.36268552,46618.0,46617.0,0.029984]
[1641233584168,0.2538669,46618.0,46617.0,0.029984]
[1641233586518,0.54899404,46618.0,46617.0,0.029984]
[1641233587521,0.59899404,46618.0,46617.0,0.02145]
[1641233588783,0.3038669,46618.0,46617.0,0.029984]
[1641233590985,0.19917292,46618.0,46617.0,0.11236946]
[1641233591179,0.15117292,46618.0,46617.0,0.11236946]
[1641233593820,0.00117292,46618.0,46617.0,0.11236946]
[1641233596379,0.00117292,46618.0,46617.0,1.27282331]
[1641233596574,0.00117292,46618.0,46617.0,1.37282331]
[1641233596779,0.00117292,46618.0,46617.0,1.39850331]
[1641233596978,0.00117292,46618.0,46617.0,1.5465033]
[1641233597177,0.00017292,46618.0,46617.0,1.54180933]
[1641233597375,0.007826,46624.0,46623.0,0.00127016]
[1641233597580,0.007826,46624.0,46623.0,1.94563051]
[1641233597977,0.007826,46624.0,46623.0,1.03563051]
[1641233598178,0.34930366,46642.0,46623.0,1.09641519]
[1641233598383,0.15,46644.0,46636.0,0.07337008]
[1641233598579,0.336412,46643.0,46636.0,0.07337008]
[1641233598779,0.203612,46643.0,46636.0,0.07337008]
[1641233598984,0.253612,46643.0,46636.0,0.07337008]
[1641233599581,0.053612,46639.0,46636.0,0.07337008]
[1641233600610,2.21018855,46639.0,46636.0,0.07337008]
[1641233601811,2.26018855,46639.0,46636.0,0.07337008]
[1641233604858,2.21018855,46639.0,46636.0,0.07337008]
[1641233605660,0.00015779,46638.0,46636.0,0.07337008]
[1641233607510,0.00015779,46638.0,46635.0,0.05361118]
[1641233608011,0.00015779,46638.0,46634.0,0.05361359]
[1641233608211,0.053613,46637.0,46634.0,0.05361359]
[1641233608813,0.00015779,46638.0,46635.0,0.10721305]
[1641233609012,0.00015779,46638.0,46636.0,0.29368312]
[1641233609212,0.00015779,46638.0,46637.0,0.78312605]
[1641233609521,0.00015779,46638.0,46637.0,1.22713604]
[1641233609716,0.00015779,46638.0,46637.0,1.61996704]
[1641233610118,0.00015779,46638.0,46637.0,2.43996704]
[1641233611876,0.053591,46654.0,46653.0,0.07263171]
[1641233612180,0.053591,46654.0,46648.0,0.16077203]
[1641233612373,0.053591,46654.0,46648.0,0.21077203]
[1641233612573,2.77260781,46650.0,46648.0,0.21077203]
[1641233613579,0.1084331,46657.0,46649.0,0.36455188]
[1641233613580,0.053588,46657.0,46649.0,0.36455188]
[1641233613775,0.048588,46657.0,46651.0,0.43737106]
[1641233613975,0.002,46659.0,46651.0,0.43737106]
[1641233613976,0.002,46659.0,46654.0,0.00129482]
[1641233615023,0.002,46659.0,46652.0,0.38021267]
[1641233615024,0.053586,46658.0,46652.0,0.38021267]
[1641233615224,0.053586,46658.0,46652.0,0.10717303]
[1641233615624,2.65102058,46657.0,46652.0,0.10717303]
[1641233616123,0.00014336,46656.0,46652.0,0.10824473]
[1641233616925,0.05373536,46656.0,46652.0,0.10824473]
[1641233617126,0.05373536,46656.0,46652.0,0.0010717]
[1641233617334,0.10173536,46656.0,46652.0,0.0010717]
[1641233617528,0.24700208,46656.0,46652.0,0.0010717]
[1641233617924,0.19700208,46656.0,46652.0,0.0010717]
[1641233619571,0.25059808,46656.0,46652.0,0.0010717]
[1641233620173,0.10173536,46656.0,46652.0,0.0010717]
[1641233620573,0.15173536,46656.0,46652.0,0.0010717]
[1641233622520,0.20533036,46656.0,46652.0,0.0010717]
[1641233622716,0.20733036,46656.0,46652.0,0.0010717]
[1641233624121,0.15373536,46656.0,46652.0,0.0010717]
[1641233625534,0.2,46655.0,46652.0,0.0010717]